[Event "FIDE Zonal 4-2 Open 2023"]
[Site "Dimbroko"]
[Date "2023.03.27"]
[Round "1.11"]
[White "James, Tondo"]
[Black "Semeko, Lumen Paco"]
[Result "0-1"]
[ECO "A36"]
[WhiteElo "1867"]
[BlackElo "1483"]
[Annotator "NA RC COMBH"]
[PlyCount "84"]
[EventDate "2023.03.25"]
[EventType "swiss"]
[SourceTitle "playchess.com"]
[Source "ChessBase"]
[SourceQuality "1"]
[TimeControl "40/5400+30:1800+30"]

1. c4 {[%emt 0:00:06]} Nf6 {[%emt 0:00:25]} 2. Nc3 {[%emt 0:00:07]} c5 {[%emt 0:00:17]} 3. g3 {[%emt 0:00:02]} g6 {[%emt 0:02:08]} 4. Bg2 {[%emt 0:00:22]} Bg7 {[%emt 0:00:05]} 5. e4 {[%emt 0:00:06]} Nc6 {[%emt 0:00:18]} 6. Nge2 {[%emt 0:00:18]} O-O {[%emt 0:01:14]} 7. O-O {[%emt 0:00:30]} d6 {[%emt 0:01:32]} 8. d3 {[%emt 0:00:16]} a6 {[%emt 0:00:55]} 9. h3 {[%emt 0:00:26]} Rb8 {[%emt 0:00:47]} 10. a4 {[%emt 0:00:17]} Bd7 {[%emt 0:01:08]} 11. Be3 {[%emt 0:01:12]} e5 {[%emt 0:03:51]} 12. f4 {[%emt 0:00:59]} exf4 {[%emt 0:04:09]} 13. gxf4 {[%emt 0:02:31]} Nh5 {[%emt 0:05:23]} 14. Nd5 {[%emt 0:05:25]} Bxb2 {[%emt 0:05:49]} 15. Rb1 {[%emt 0:00:55]} Bg7 {[%emt 0:00:21]} 16. Qd2 {[%emt 0:01:32]} Nd4 {[%emt 0:05:05]} 17. Bxd4 {[%emt 0:01:19]} cxd4 {[%emt 0:01:45]} 18. a5 {[%emt 0:03:09]} f5 {[%emt 0:14:03]} 19. Rb6 {[%emt 0:01:04]} Bc6 {[%emt 0:02:28]} 20. Bf3 {[%emt 0:11:16]} Rf7 {[%emt 0:17:13]} 21. Nb4 {[%emt 0:11:25]} Rc8 {[%emt 0:03:31]} 22. Nxc6 {[%emt 0:08:25]} Rxc6 {[%emt 0:00:41]} 23. Rxc6 {[%emt 0:15:28]} bxc6 {[%emt 0:00:02]} 24. exf5 {[%emt 0:00:02]} Rxf5 {[%emt 0:01:12]} 25. Bxc6 {[%emt 0:00:50]} Qxa5 {[%emt 0:01:09]} 26. Qb2 {[%emt 0:01:41]} Qc5 {[%emt 0:02:35]} 27. Bd5+ {[%emt 0:04:21]} Kh8 {[%emt 0:00:29]} 28. Qb7 {[%emt 0:04:17]} a5 {[%emt 0:01:16]} 29. Rb1 {[%emt 0:00:17]} Nxf4 {[%emt 0:04:32]} 30. Nxf4 {[%emt 0:03:46]} Rxf4 {[%emt 0:00:11]} 31. Qd7 {[%emt 0:02:18]} Qa3 {[%emt 0:09:37]} 32. Bf7 {[%emt 0:09:29]} Bf8 {[%emt 0:02:54]} 33. Qe8 {[%emt 0:02:37]} Kg7 {[%emt 0:04:34]} 34. Bd5 {[%emt 0:02:52]} Qxd3 {[%emt 0:01:20]} 35. Rb7+ {[%emt 0:04:18]} Kh6 {[%emt 0:03:40]} 36. Bg2 {[%emt 0:01:35]} Qe3+ {[%emt 0:01:51]} 37. Qxe3 dxe3 38. Bf1 Bg7 39. Rb3 Bd4 40. Be2 Rf2 41. Bg4 e2 {[%emt 0:31:12]} 42. Bxe2 {[%emt 0:32:37]} Rf3+ {[%emt 0:01:12]} 0-1

[Event "FIDE Zonal 4-2 Open 2023"]
[Site "Dimbroko"]
[Date "2023.03.27"]
[Round "2.1"]
[White "Joel O. Ebiekuta"]
[Black "Ortega Amarelle, Mariano"]
[Result "0-1"]
[ECO "B43"]
[WhiteElo "1855"]
[BlackElo "2472"]
[Annotator "TA"]
[PlyCount "102"]
[EventDate "2023.03.25"]
[EventType "swiss"]
[SourceTitle "playchess.com"]
[Source "ChessBase"]
[SourceQuality "1"]
[TimeControl "40/5400+30:1800+30"]

{[%evp 13,102,12,0,-3,29,16,13,-2,15,-198,-209,-212,-203,-285,-144,-301,-302,-296,-245,-245,-250,-260,-248,-239,-243,-379,-301,-315,-299,-385,-386,-545,-564,-682,-694,-670,-687,-791,-764,-756,-231,-294,-296,-337,-248,-373,-367,-363,-358,-408,-406,-469,-281,-309,-297,-292,-275,-345,-270,-331,-262,-318,-357,-349,-339,-462,-455,-447,-447,-522,-518,-505,-487,-533,-512,-552,-553,-566,-567,-715,-662,-832,-720,-728,-650,-1113,-1072,-1022,-1012,-1477,-1461]} 1. e4 {[%emt 0:00:50]} c5 {[%emt 0:00:05]} 2. Nf3 {[%emt 0:02:22]} e6 {[%emt 0:00:54]} 3. Nc3 {[%emt 0:02:42]} a6 {[%emt 0:02:42]} 4. d4 {[%emt 0:11:23]} cxd4 {[%emt 0:00:14]} 5. Nxd4 {[%emt 0:00:11]} Qc7 {[%emt 0:00:38]} 6. a3 {[%emt 0:02:30]} Nf6 {[%emt 0:00:29]} 7. Be3 {[%emt 0:06:09] Recently 7.f4 got a lot of attention.} b5 {[%emt 0:01:46]} 8. g3 {[%emt 0:01:36] B43: Sicilian: Kan Variation: 5 Nc3.} b4 {[%emt 0:11:48]} 9. axb4 {[%emt 0:07:25]} Bxb4 {[%emt 0:00:15] [#]} 10. Qd3 $146 {[%emt 0:00:13] The position is equal.} ({Predecessor:} 10. Bg2 Bb7 11. O-O Bxc3 12. bxc3 Bxe4 13. Bxe4 Nxe4 14. Qg4 Kf8 15. Qxe4 d5 16. Nb5 {1-0 Curriah,M (2043)-Perelygin,I (2303) Titled Tuesday intern op 01st Sept blitz 2020 (8)}) 10... Nxe4 {[%emt 0:34:32][%mdl 64] [#] Deflection} 11. Nde2 {[%emt 0:11:15]} ({Much weaker is} 11. Qxe4 Bb7 12. Qd3 (12. Nc6 $2 Nxc6 13. f3 Bxc3+ 14. bxc3 Ne5 $19) 12... Bxh1 $17) (11. Bg2 $11 d5 12. O-O Nxc3 13. Bf4) 11... Bb7 $19 {[%emt 0:05:35]} 12. Rg1 {[%emt 0:08:03]} O-O {[%emt 0:00:50]} 13. Ra4 {[%emt 0:06:07]} (13. O-O-O $142 Nxc3 14. Nxc3) 13... Bxc3+ {[%emt 0:10:18]} ({Black should try} 13... Nc5 $19 14. Bxc5 Bxc5) 14. bxc3 $2 {[%emt 0:00:15]} (14. Nxc3 $17 {was the only chance.} Nc5 15. Bxc5 (15. Qc4 d6 $17) 15... Qxc5 16. Qd4) 14... d5 {[%emt 0:01:49]} 15. f3 {[%emt 0:05:15]} Nc5 {[%emt 0:00:19]} 16. Bxc5 {[%emt 0:00:02]} Qxc5 {[%emt 0:00:09]} 17. Qd4 {[%emt 0:00:32]} Qc7 {[%emt 0:03:21]} 18. f4 {[%emt 0:02:38]} Nd7 {[%emt 0:23:46]} 19. h4 {[%emt 0:01:16]} (19. Bg2 {was called for.}) 19... Nc5 {[%emt 0:00:00]} 20. Ra1 {[%emt 0:01:43]} f6 {[%emt 0:00:00]} 21. Bh3 {[%emt 0:00:40]} e5 {[%emt 0:00:00]} 22. Qb4 {[%emt 0:04:04]} (22. Qd1 {was necessary.}) 22... a5 {[%emt 0:00:00]} 23. Qa3 {[%emt 0:01:05]} exf4 {[%emt 0:00:00]} 24. Nxf4 {[%emt 0:05:27]} Rfe8+ {[%emt 0:00:00]} 25. Kf2 {[%emt 0:02:12]} Ne4+ {[%emt 0:00:00]} 26. Kg2 {[%emt 0:02:54]} Qxc3 $2 {[%emt 0:00:00]} (26... Nxg3 27. Be6+ Kh8 28. Kxg3 Rxe6) 27. Qxc3 {[%emt 0:04:28]} Nxc3 {[%emt 0:00:00]} 28. Ne6 {[%emt 0:00:35]} Re7 {[%emt 0:01:43]} 29. Nc5 {[%emt 0:02:38]} (29. Ra3 $142) 29... d4+ {[%emt 0:00:14]} 30. Nxb7 {[%emt 0:00:54]} Rxb7 {[%emt 0:00:07]} 31. Rge1 {[%emt 0:00:16]} a4 {[%emt 0:00:55]} 32. Kf2 {[%emt 0:00:14]} Rd8 {[%emt 0:00:56]} (32... Rb2 $142 33. Re7 d3 34. Be6+ Kh8) 33. Bf5 {[%emt 0:00:36]} g6 {[%emt 0:00:43]} 34. Bd3 {[%emt 0:00:20]} f5 {[%emt 0:00:17]} 35. Re6 {[%emt 0:00:34]} Kg7 {[%emt 0:01:57] ...Ra8 is the strong threat.} 36. Kf3 {[%emt 0:01:08]} Rdd7 {[%emt 0:00:26]} 37. Kf4 {[%emt 0:00:29]} Re7 {[%emt 0:00:59]} 38. Rd6 {[%emt 0:03:24]} Rbd7 {[%emt 0:00:42]} 39. Rxd7 {[%emt 0:00:22]} Rxd7 {[%emt 0:00:03][%mdl 4096] Endgame KRB-KRN. Black is clearly winning.} 40. Ke5 {[%emt 0:00:19]} Rd5+ {[%emt 0:00:10]} 41. Ke6 {[%emt 0:30:06][%cal Oa1a4]} Ra5 {[%emt 0:30:12]} 42. Ra3 {[%emt 0:02:46]} Ne4 {[%emt 0:01:07]} 43. Bc4 {[%emt 0:03:11]} h6 {[%emt 0:01:13][%cal Bh7h6,Bh6g5,Bg5g4][%mdl 32]} 44. Bd5 {[%emt 0:00:48]} Nc3 {[%emt 0:00:22]} 45. Bc4 {[%emt 0:00:09]} g5 {[%emt 0:00:00]} 46. hxg5 {[%emt 0:00:00]} hxg5 {[%emt 0:00:00]} 47. Bd3 {[%emt 0:00:00]} Ne4 {[%emt 0:00:00]} 48. Bc4 {[%emt 0:00:00]} g4 {[%emt 0:00:00]} 49. Bf1 {[%emt 0:00:00]} Kg6 {[%emt 0:00:00]} 50. Bc4 {[%emt 0:00:00]} Kg5 {[%emt 0:00:00]} 51. Bf1 {[%emt 0:00:00] [#]} Nxg3 $1 {[%emt 0:00:00][%mdl 512] Black took control after the opening.   Weighted Error Value: White=0.65/Black=0.35} 0-1

[Event "FIDE Zonal 4-2 Open 2023"]
[Site "Dimbroko"]
[Date "2023.03.27"]
[Round "2.2"]
[White "Abdulraheem Abdulrahman Akinto"]
[Black "Nean, Franck Anderson"]
[Result "1-0"]
[ECO "B94"]
[WhiteElo "2302"]
[BlackElo "1851"]
[Annotator "TA"]
[PlyCount "75"]
[EventDate "2023.03.25"]
[EventType "swiss"]
[SourceTitle "playchess.com"]
[Source "ChessBase"]
[SourceQuality "1"]
[TimeControl "40/5400+30:1800+30"]

{[%evp 11,75,8,21,8,42,4,72,81,86,84,72,59,92,77,85,83,85,89,91,83,164,160,144,-15,-18,-22,29,48,31,-47,-37,-468,-461,-535,-530,-522,-524,-525,-502,-466,0,0,0,-56,-46,-35,-21,-22,0,0,1153,1133,1116,1094,29990,29991,29993,29994,29996,29997,29997,29998,29998,29998,29998,29999]} 1. e4 {[%emt 0:00:03]} c5 {[%emt 0:01:03]} 2. Nf3 {[%emt 0:00:10]} d6 {[%emt 0:00:07]} 3. d4 {[%emt 0:00:10]} cxd4 {[%emt 0:00:07]} 4. Nxd4 {[%emt 0:00:08]} Nf6 {[%emt 0:00:17]} 5. Nc3 {[%emt 0:00:08]} a6 {[%emt 0:00:14]} 6. Bg5 {[%emt 0:00:09]} Nbd7 {[%emt 0:00:39]} 7. Qe2 $1 {[%emt 0:02:14] B94: Sicilian Najdorf: 6 Bg5 Nbd7.} Qa5 {[%emt 0:04:42]} 8. f4 {[%emt 0:02:25]} e6 {[%emt 0:07:12]} (8... h6 $11 {keeps the balance.} 9. Bh4 e5) 9. O-O-O $16 {[%emt 0:00:49][%cal Be1c1,Bc1b1,Bb1b2][%mdl 32] White is better.} Be7 {[%emt 0:00:58]} 10. g4 {[%emt 0:01:33]} h6 {[%emt 0:03:41]} 11. Bxf6 {[%emt 0:09:11]} (11. Bh4 {seems wilder.} g5 12. fxg5 hxg5 13. Nb3) 11... gxf6 {[%emt 0:01:59] [#]} 12. Bg2 $146 {[%emt 0:02:25]} ({Predecessor:} 12. Kb1 Nc5 13. h4 Bd7 14. Rh3 O-O-O 15. a3 Qb6 16. f5 Rhe8 17. Qc4 Kb8 18. Qb4 {½-½ Almeida Toledano,D (2326)-Rafiee,M (2148) Foment Martinenc 15th 2013 (4)}) 12... Qc7 {[%emt 0:04:39]} 13. Kb1 {[%emt 0:04:29]} Nb6 {[%emt 0:01:04][%cal Bd7b6,Bb6c4,Bc4a3][%mdl 32]} 14. h4 {[%emt 0:12:31]} Bd7 {[%emt 0:02:26]} 15. Rh3 {[%emt 0:02:10]} Rc8 {[%emt 0:02:53] [#]} (15... Rg8 $16) 16. g5 $1 $18 {[%emt 0:04:46][%mdl 512]} Nc4 {[%emt 0:30:45][%cal Rh6g5] [#]} (16... fxg5 17. hxg5) 17. b3 $2 {[%emt 0:17:02]} (17. g6 $1 $16 {[%cal Rg6f7]} fxg6 18. f5) 17... Na3+ $11 {[%emt 0:01:50]} 18. Kb2 {[%emt 0:02:33]} Qa5 {[%emt 0:01:12] [#]} (18... b5 $142 $1 19. Kxa3 b4+ 20. Kb2 bxc3+ 21. Ka1 Qa5 22. gxh6 Rc5) 19. g6 $1 {[%emt 0:17:11]} fxg6 {[%emt 0:03:12] White must now prevent ...e5.} 20. Qg4 {[%emt 0:00:34]} (20. f5 $14 e5 21. Ne6) 20... Rg8 $15 {[%emt 0:04:29]} 21. Nxe6 {[%emt 0:01:27][%mdl 8192]} ({Better is} 21. h5 $15 e5 22. Nf5) 21... h5 $19 {[%emt 0:01:10][%mdl 64] Deflection} ({Inferior is} 21... Nxc2 22. f5 $15) 22. Qf3 {[%emt 0:04:12]} Bxe6 {[%emt 0:00:15]} 23. f5 {[%emt 0:00:15]} Bf7 {[%emt 0:02:20]} 24. e5 {[%emt 0:01:10]} dxe5 {[%emt 0:08:13]} (24... Nxc2 25. Qxb7 Qa3+ 26. Kb1 $16) 25. Qxb7 {[%emt 0:00:20]} Rd8 {[%emt 0:01:21]} (25... Qc7 $19 26. Qxc7 Rxc7 27. fxg6 Bxg6) 26. Rxd8+ $11 {[%emt 0:01:06][%mdl 64] Remove Defender} Bxd8 {[%emt 0:06:04]} (26... Qxd8 $2 27. Rd3 Bd6 28. Bc6+ Kf8 29. Ne4 $18 (29. Qxa6 gxf5 30. Ba4 Ke7 $11)) 27. Rd3 {[%emt 0:00:02]} (27. Bd5 $11 Qc7 28. Qxa6) 27... Kf8 $15 {[%emt 0:01:00] ...Nb5 would be deadly.} (27... gxf5 $2 28. Qd7+ Kf8 29. Qxd8+ Qxd8 30. Rxd8+ Be8 31. Bd5 $18) 28. Qc8 {[%emt 0:05:54]} Kg7 {[%emt 0:00:44] Threatens to win with ...Bc7.} 29. Rd7 {[%emt 0:01:01] Prevents Bc7. aiming for Bd5.} Nb5 {[%emt 0:02:00]} (29... Be7 $5 {[%cal Rg8c8]} 30. Qb7 Nc4+ 31. bxc4 Qa3+ 32. Kb1 Qb4+ 33. Qxb4 Bxb4 $17) 30. Nxb5 $1 $40 {[%emt 0:02:20][%mdl 128] Black needs to defend precisely. Active counter play!} axb5 {[%emt 0:02:48][%mdl 8192] [#]} (30... Qxb5 $11 31. fxg6 Kxg6 32. Rxd8 Rxd8 33. Qxd8 (33. Be4+ Kg7 $11) 33... Qb4) 31. Qb7 $1 $18 {[%emt 0:01:33]} Rf8 {[%emt 0:01:45]} 32. Bd5 {[%emt 0:00:16][%cal Rd7f7]} Kh6 {[%emt 0:02:07]} 33. Rxf7 {[%emt 0:00:37] Black is weak on the light squares. White mates.} Rxf7 {[%emt 0:01:35]} 34. Qxf7 {[%emt 0:00:10][%csl Gf5][%cal Rf7g6]} gxf5 {[%emt 0:00:44]} 35. Qf8+ {[%emt 0:00:34]} Kh7 {[%emt 0:00:44]} 36. Bg8+ {[%emt 0:00:21]} Kh8 {[%emt 0:00:10]} 37. Bf7+ {[%emt 0:00:13]} Kh7 {[%emt 0:00:17]} 38. Qg8+ {[%emt 0:00:07] Ingenious play by Abdulraheem Abdulrahman Akinto!   Weighted Error Value: White=0.32/Black=0.65} 1-0

[Event "FIDE Zonal 4-2 Open 2023"]
[Site "Dimbroko"]
[Date "2023.03.27"]
[Round "2.3"]
[White "Manan, Yoboue Hermann"]
[Black "AKA JUSTIN JEAN-ROBERT KOUMI"]
[Result "1-0"]
[ECO "C48"]
[WhiteElo "2015"]
[BlackElo "1833"]
[Annotator "TA"]
[PlyCount "45"]
[EventDate "2023.03.25"]
[EventType "swiss"]
[SourceTitle "playchess.com"]
[Source "ChessBase"]
[SourceQuality "1"]
[TimeControl "40/5400+30:1800+30"]

{[%evp 9,45,-20,54,62,67,68,84,18,8,26,16,-74,-67,-91,-106,-106,-113,-127,-42,-56,348,346,325,332,440,361,1065,1008,29979,1838,2235,2210,29995,29996,29996,29997,29997,29998]} 1. e4 {[%emt 0:00:17]} e5 {[%emt 0:00:04]} 2. Nf3 {[%emt 0:00:34]} Nf6 {[%emt 0:00:23]} 3. Nc3 {[%emt 1:31:09]} Nc6 {[%emt 0:00:15]} 4. Bb5 {[%emt 0:00:00]} Nd4 {[%emt 0:00:47]} 5. Nxe5 {[%emt 0:00:00]} Nxb5 {[%emt 0:03:00]} (5... Qe7 $1 $11 6. Nf3 (6. f4 Nxb5 7. Nxb5 d6 $11) 6... Nxb5 7. Nxb5 Qxe4+ 8. Qe2 Qxe2+ 9. Kxe2 Nd5) 6. Nxb5 $14 {[%emt 0:00:00] C48: Four Knights: 4 Bb5, replies other than 4...Bb4.} c6 {[%emt 0:00:48]} 7. Nc3 {[%emt 0:00:00] White has more active pieces. The black rooks are badly placed.} Qe7 {[%emt 0:00:28]} 8. f4 {[%emt 0:00:00]} (8. Nf3 $16) 8... d6 $11 {[%emt 0:01:16]} 9. Nf3 {[%emt 0:00:00]} Nxe4 {[%emt 0:04:04]} 10. Nxe4 {[%emt 0:00:00]} (10. O-O $1 $11 Nxc3 11. dxc3) 10... Qxe4+ $17 {[%emt 0:00:44] [#]} 11. Kf2 $146 {[%emt 0:00:00] Hoping for Re1.} ({Predecessor:} 11. Qe2 Bf5 12. d3 Qxe2+ 13. Kxe2 Kd7 14. h3 Re8+ 15. Kf2 c5 16. g4 Be6 17. c4 {½-½ Bratimirova,D (2032)-Georgiev,S (2150) Kesarovski Georgiev Memorial 8th 2009 (6)}) 11... Qxf4 {[%emt 0:02:25]} 12. d4 {[%emt 0:00:00] [#]} Qf5 {[%emt 0:00:50]} (12... Qe4 $2 13. Re1 $18) 13. c4 {[%emt 0:00:00]} d5 {[%emt 0:03:07]} ({Black should try} 13... Be7 $17 {White must now prevent ...0-0.} 14. Re1 Be6) 14. Re1+ $15 {[%emt 0:00:00][%cal Bh1e1,Be1e5,Be5e6][%mdl 32]} Be6 $2 {[%emt 0:01:23][%mdl 8192] [#] Loses the game.} (14... Be7 $1 $15 {keeps the upper hand.}) 15. Re5 $1 $18 {[%emt 0:00:00]} Qg6 {[%emt 0:02:13] ...Bd6 is the strong threat.} 16. cxd5 {[%emt 0:00:00]} cxd5 {[%emt 0:01:35]} 17. Bg5 {[%emt 0:00:00] White threatens Qa4+ and mate.} f6 $2 {[%emt 0:07:02]} (17... Bd6 $2 18. Nh4 Bxe5 19. Nxg6 hxg6 20. dxe5 $18) (17... Rc8 18. Qa4+ Rc6) 18. Rxe6+ {[%emt 0:00:00]} Kd7 {[%emt 0:00:39]} 19. Qe2 {[%emt 0:00:00]} (19. Qb3 $142 Qf5 20. Rae1 Kc7 21. Rc1+ {[%mdl 64] Deflection} Kd8 22. Qxb7 {[%mdl 64] Trapped Piece, Double Attack} Qxe6 23. Qxa8+ Ke7 24. Qb7+ Qd7 25. Re1+ Kd8 26. Qb8+ Qc8 27. Re8+ {[%mdl 64] Skewer, Deflection} Kxe8 28. Qxc8+ Kf7 29. Ne5+ fxe5 30. Qf5+ Ke8 31. Qe6+ Be7 32. Qxe7#) 19... Qf5 {[%emt 0:00:46] [#]} 20. Re1 $1 {[%emt 0:00:00] Threatening mate with Qb5+.} fxg5 {[%emt 0:02:08]} (20... Rd8 21. g4) 21. Qb5+ {[%emt 0:00:00] White mates.} Kd8 {[%emt 0:04:23]} 22. Qe8+ {[%emt 0:00:00][%mdl 64] Skewer} Kc7 {[%emt 0:00:27]} 23. Rc1+ {[%emt 0:00:00] Artfully played by Manan.   Weighted Error Value: White=0.26 (precise) /Black=1.30} 1-0

[Event "FIDE Zonal 4-2 Open 2023"]
[Site "Dimbroko"]
[Date "2023.03.27"]
[Round "2.4"]
[White "Kennedy Zinnah Kengo"]
[Black "Cogan, Nicolas"]
[Result "0-1"]
[ECO "B22"]
[WhiteElo "1785"]
[BlackElo "2013"]
[Annotator "TA"]
[PlyCount "89"]
[EventDate "2023.03.25"]
[EventType "swiss"]
[SourceTitle "playchess.com"]
[Source "ChessBase"]
[SourceQuality "1"]
[TimeControl "40/5400+30:1800+30"]

{[%evp 9,89,-16,6,0,-10,0,68,-36,-45,-43,-33,-28,-37,-59,-12,-68,-54,-85,-60,-90,-68,-137,-141,-139,-133,-145,-163,-158,-151,-179,-176,-180,-191,-201,-182,-182,-184,-180,-187,-226,-176,-251,-250,-310,-296,-329,-320,-301,-313,-383,-375,-504,-489,-527,-504,-587,-578,-691,-690,-677,-660,-679,-674,-704,-717,-806,-795,-5908,-3281,-12840,-12840,-12843,-12843,-29981,-29982,-12845,-12845,-29983,-29984,-29983,-29984,-12845]} 1. e4 {[%emt 0:00:09]} c5 {[%emt 0:00:03]} 2. Nf3 {[%emt 0:00:26]} Nc6 {[%emt 0:00:06]} 3. c3 {[%emt 0:00:46]} Nf6 {[%emt 0:00:23]} 4. e5 {[%emt 0:00:25]} Nd5 {[%emt 0:00:06]} 5. Be2 {[%emt 0:01:20]} g6 {[%emt 0:05:35]} (5... d6 $5 {[%cal Rd6e5]}) 6. O-O {[%emt 0:00:32] B22: Sicilian: 2 c3.} Bg7 {[%emt 0:00:15][%cal Oe8g8]} 7. d4 {[%emt 0:00:15]} O-O {[%emt 0:15:39]} ({Better is} 7... cxd4 $11 8. Qb3 Nb6) 8. Re1 {[%emt 0:04:04]} (8. dxc5 $14 e6 9. Bg5) 8... cxd4 $15 {[%emt 0:00:23]} 9. cxd4 {[%emt 0:00:21]} d6 {[%emt 0:00:06]} 10. exd6 {[%emt 0:00:48]} Qxd6 {[%emt 0:00:20]} 11. Nc3 {[%emt 0:00:15]} Bf5 {[%emt 0:03:46] [#]} (11... Rd8 $15) 12. a3 $146 {[%emt 0:01:33]} (12. Bc4 $11 Nc7 13. Be3) ({Predecessor:} 12. Bc4 Nxc3 13. bxc3 Rac8 14. Bb3 b5 15. Bg5 Rfe8 16. Bh4 Na5 17. Ne5 Bxe5 18. Rxe5 Rxc3 {½-½ Ji,D (2374)-Motylev,A (2645) CHN-chT China 2013 (20.6)}) 12... Rfd8 {[%emt 0:01:24] Black is much more active. The white rooks are badly placed.} 13. Bg5 {[%emt 0:05:19]} Nf4 {[%emt 0:05:07][%cal Rc6d4] Black keeps a firm grip on the game.} 14. Bf1 {[%emt 0:04:01]} h6 {[%emt 1:04:17]} (14... Bxd4 $6 15. Bxe7 Nxe7 16. Qxd4 Qxd4 17. Nxd4 $11) 15. Bh4 {[%emt 0:01:35]} ({White should try} 15. Nb5 $15 Qb8 16. Bxe7) 15... g5 $17 {[%emt 0:00:00]} 16. Bg3 {[%emt 0:00:22]} Bg4 {[%emt 0:00:00][%cal Rc6d4]} (16... Bxd4 17. Nb5 Qf6 18. Nbxd4 $11) 17. Bxf4 {[%emt 0:04:17]} Qxf4 {[%emt 0:00:00]} (17... gxf4 18. h3 Bh5 19. d5 Bxc3 20. bxc3 Qxd5 21. Qxd5 Rxd5 22. Nd4 $17) 18. Re4 {[%emt 0:00:20]} Bxf3 {[%emt 0:00:00][%mdl 64] [#] Deflection} 19. Qxf3 {[%emt 0:01:30]} Qxf3 {[%emt 0:00:00]} 20. gxf3 {[%emt 0:00:07]} Rxd4 {[%emt 0:00:00]} (20... Nxd4 21. Rxe7 Nxf3+ 22. Kg2 Nh4+ 23. Kg1) 21. Bb5 {[%emt 0:01:32]} e6 {[%emt 0:00:00][%cal Be7e6,Be6e5][%mdl 32]} 22. Bxc6 {[%emt 0:01:05]} bxc6 {[%emt 0:00:00]} 23. Rxd4 {[%emt 0:00:28]} Bxd4 $19 {[%emt 0:00:00][%mdl 4096] Endgame KRB-KRN} 24. Rd1 {[%emt 0:00:07]} e5 {[%emt 0:00:00]} 25. Rd2 {[%emt 0:01:17]} (25. Rc1 $142) 25... Rb8 {[%emt 0:00:00]} 26. Nd1 {[%emt 0:00:11]} Rb3 {[%emt 0:00:00]} 27. Kg2 {[%emt 0:00:12]} Kg7 {[%emt 0:00:00]} 28. Rc2 {[%emt 0:01:44]} c5 {[%emt 0:00:00]} 29. Ne3 {[%emt 0:00:22]} Kf6 {[%emt 0:00:00]} ({Weaker is} 29... Rxb2 30. Nf5+ Kf6 31. Nxd4 $16) ({Worse is} 29... Bxb2 30. Rxc5 Bd4 31. Ra5 $19) 30. Nc4 {[%emt 0:00:56]} Ke6 {[%emt 0:00:00]} 31. Rc1 {[%emt 0:03:55]} Kd5 {[%emt 0:00:00]} ({Inferior is} 31... Bxb2 32. Nxb2 Rxb2 33. Rxc5 $17) 32. Rc2 {[%emt 0:00:13]} f5 {[%emt 0:00:00]} 33. Ne3+ {[%emt 0:02:59]} Bxe3 {[%emt 0:00:00]} 34. fxe3 {[%emt 0:00:06]} Rxe3 {[%emt 0:00:00] KR-KR} 35. Rd2+ {[%emt 0:00:07]} Kc4 {[%emt 0:00:00]} 36. Rd7 {[%emt 0:01:32]} Re2+ {[%emt 0:00:00]} 37. Kg1 {[%emt 0:00:16]} Rxb2 {[%emt 0:00:00]} 38. Rxa7 {[%emt 0:00:06]} Kd3 {[%emt 0:12:00] [#] Strongly threatening ...c4.} 39. a4 {[%emt 0:00:17]} c4 {[%emt 0:00:00]} 40. a5 {[%emt 0:00:06]} c3 {[%emt 0:00:00] ( -> ...c2)} 41. a6 {[%emt 0:30:29]} c2 {[%emt 0:00:00][%cal Rc2c1]} 42. Rc7 {[%emt 0:04:25]} Rb1+ {[%emt 0:00:00]} 43. Kf2 {[%emt 0:00:15]} c1=Q {[%emt 0:00:00][%csl Gb1][%cal Rc1g1]} 44. Rd7+ {[%emt 0:03:18]} Kc4 {[%emt 0:00:00]} 45. Rc7+ {[%emt 0:01:07] Weighted Error Value: White=0.88/Black=0.11 (very precise)} 0-1